Cogmind - Beta 13 @@@ ROGUE MODE // 2024.07.11 @ 15:00:12 Player: saltine Result: Self-destructed Performance ------------- Evolutions (1) 500 Regions Visited (5) 1000 Robots Destroyed (37) 185 Value Destroyed (681) 681 Prototype IDs (24) 480 Alien Tech Used (0) 0 Bonus (304) 304 TOTAL SCORE: 3150 Bonus ------- High Alert Combat Kills 4 Aligned with FarCom 300 Cogmind --------- Core Integrity 198/400 Matter 400/400 Energy 265/265 System Corruption 0% Temperature Cool (0) Movement Treading (160) Location -8/Mines Parts ------- > --- POWER (1) -------- Improved Ion Engine > --- PROPULSION (4) --- Light Treads Light Treads Improved Treads > --- UTILITY (2) ------ Large Storage Unit Medium Matter Pod > --- WEAPON (2) ------- Flak Gun Mini Grenade Launcher > --- INVENTORY (15) --- Improved Ion Engine Light Treads Light Treads Light Treads Light Treads Light Treads Light Treads Compact Wheel Cooling System Kinecellerator Medium Laser Mini Grenade Launcher Mini Grenade Launcher Plasma Cutter Longsword +1 Peak State ------------ > --- POWER ------------ Improved Ion Engine > --- PROPULSION ------- Light Treads Light Treads Improved Treads Improved Treads > --- UTILITY ---------- Large Storage Unit Medium Matter Pod > --- WEAPON ----------- Flak Gun Mini Grenade Launcher > --- INVENTORY -------- Improved Ion Engine Light Treads Light Treads Light Treads Light Treads Light Treads Light Treads Compact Wheel Cooling System Kinecellerator Medium Laser Mini Grenade Launcher Mini Grenade Launcher Plasma Cutter Longsword +1 [Rating: 19] Favorites ----------- Power Improved Ion Engine Engine Improved Ion Engine Propulsion Improved Treads Treads Improved Treads Leg Aluminum Leg Utility Large Storage Unit Device Trap Extractor Storage Large Storage Unit Processor Improved Targeting Computer Weapon Mini Grenade Launcher Ballistic Gun Flak Gun Launcher Mini Grenade Launcher Build | -11 -10 -9 -9 -9 -8 ------- Run | Yrd Mat Mat Min Exi Min Slots Evolved 2 | . . 2 . . . Power . | . . . . . . Propulsion 2 | . . 2 . . . Utility . | . . . . . . Weapon . | . . . . . . Parts Attached 25 | 9 3 8 4 1 . Power 2 | 1 . 1 . . . Engine 2 | 1 . 1 . . . Core . | . . . . . . Reactor . | . . . . . . Propulsion 11 | 5 2 3 1 . . Treads 10 | 4 2 3 1 . . Leg 1 | 1 . . . . . Wheel . | . . . . . . Hover . | . . . . . . Flight . | . . . . . . Utility 5 | 1 1 2 . 1 . Device 1 | . . 1 . . . Storage 3 | 1 1 . . 1 . Processor 1 | . . 1 . . . Hackware . | . . . . . . Protection . | . . . . . . Artifact . | . . . . . . Weapon 7 | 2 . 2 3 . . Energy Gun . | . . . . . . Energy Cannon . | . . . . . . Ballistic Gun 5 | 2 . 1 2 . . Ballistic Cannon . | . . . . . . Launcher 2 | . . 1 1 . . Special Weapon . | . . . . . . Impact Weapon . | . . . . . . Slashing Weapon . | . . . . . . Piercing Weapon . | . . . . . . Special Melee Weapon . | . . . . . . Unidentified Prototypes . | . . . . . . Parts Lost 5 | . . 1 3 . 1 Power . | . . . . . . Propulsion 2 | . . . 1 . 1 Utility 1 | . . 1 . . . Weapon 2 | . . . 2 . . Highest Loss Streak 1 | . . 1 1 . 1 To Critical Strikes . | . . . . . . Average Slot Usage (%) 90 | . 96 97 86 89 89 Engine 11 | . 14 11 11 11 11 Treads 40 | . 28 44 42 44 34 Storage 15 | . 24 13 11 12 22 Ballistic Gun 14 | . 28 21 11 11 11 Launcher 8 | . . . 10 11 11 Naked Turns . | . . . . . . Heaviest Build 35 | 11 31 35 32 34 34 Greatest Support 92 | 40 46 92 89 86 86 Greatest Overweight (x) 3 | 3 . . . . . Average Overweight (x) . | . . . . . . Largest Inventory Capacity 15 | 8 15 15 15 15 15 Average Capacity 14 | 6 13 15 15 15 15 Most Carried 15 | 6 15 15 15 15 15 Average Carried 13 | 3 9 14 14 14 15 Final Capacity 15 | 8 15 15 15 15 15 Final Carried 15 | 6 15 15 15 15 15 Class Distribution -------------------- 100% | Mutant Dominant Class ---------------- Mutant | -10/Materials Mutant | -9/Materials Mutant | -9/Mines Mutant | -9/Exiles Mutant | -8/Mines Resources | -11 -10 -9 -9 -9 -8 ----------- Run | Yrd Mat Mat Min Exi Min Matter Collected 765 | 310 . 258 137 . 60 Remotely . | . . . . . . Salvage Created 812 | 83 . 392 267 . 70 Parts 77 | 2 . 34 31 . 10 Haulers Intercepted . | . . . . . . Recyclers Shooed . | . . . . . . Parts Field Recycled . | . . . . . . Retrieved Matter . | . . . . . . Parts Self-Destructed . | . . . . . . Prevented . | . . . . . . Kills | -11 -10 -9 -9 -9 -8 ------- Run | Yrd Mat Mat Min Exi Min Combat Hostiles Destroyed 35 | . . 11 18 . 6 Guns 14 | . . 9 3 . 2 AOE 21 | . . 2 15 . 4 Classes Destroyed 7 | 1 . 3 2 . 1 Worker 1 | . . . . . 1 Recycler 2 | 1 . . 1 . . Swarmer 24 | . . 3 15 . 6 Grunt 6 | . . 5 1 . . Brawler 1 | . . . 1 . . Sentry 3 | . . 3 . . . Assembled 1 | . . . 1 . . Best Kill Streak 5 | 1 . 4 5 . 4 Combat Bots Only 4 | . . 4 4 . 3 Max Kills in Single Turn 4 | 1 . 2 4 . 3 Gunslinging . | . . . . . . Exploded 4 | . . 2 4 . 2 Melee . | . . . . . . Uniques/NPCs Destroyed . | . . . . . . Combat | -11 -10 -9 -9 -9 -8 -------- Run | Yrd Mat Mat Min Exi Min Hostile Shots Fired 130 | . . 70 53 . 7 Missed 29 | . . 17 11 . 1 Damage Taken 1254 | . . 614 577 . 63 Core 202 | . . 70 132 . . Absorbed by Shields . | . . . . . . Core Remaining (%) 100 | 100 100 . . . . Volleys Fired 67 | 5 . 36 21 . 5 Largest 2 | 2 . 2 2 . 2 Hottest 58 | 40 . 50 58 . 58 Shots Fired 129 | 10 . 72 39 . 8 Gun 118 | 10 . 71 32 . 5 Cannon . | . . . . . . Launcher 11 | . . 1 7 . 3 Special . | . . . . . . Kinetic 118 | 10 . 71 32 . 5 Thermal . | . . . . . . Explosive 11 | . . 1 7 . 3 Electromagnetic . | . . . . . . Robot Hit Streak 16 | 3 . 16 9 . 5 Robot Miss Streak 11 | 1 . 3 2 . 11 Penetration Max . | . . . . . . Secondary Targets 3 | . . 2 1 . . Max Gunslinging Chain 1 | . . 1 1 . . Shots Hit Robots 82 | 6 . 49 23 . 4 Core Hits 59 | 2 . 23 25 . 9 Critical Kills . | . . . . . . Critical Parts Destroyed . | . . . . . . Critical Strikes . | . . . . . . Melee Attacks . | . . . . . . Impact . | . . . . . . Slashing . | . . . . . . Piercing . | . . . . . . Sneak Attacks . | . . . . . . Combat Hostiles . | . . . . . . Follow-up Attacks . | . . . . . . Damage Inflicted 2013 | 51 . 621 1083 . 258 Guns 764 | 51 . 491 189 . 33 Cannons . | . . . . . . Explosions 1249 | . . 130 894 . 225 Melee . | . . . . . . Ramming . | . . . . . . Kinetic 764 | 51 . 491 189 . 33 Thermal 84 | . . . 84 . . Explosive 1165 | . . 130 810 . 225 Electromagnetic . | . . . . . . Impact . | . . . . . . Slashing . | . . . . . . Piercing . | . . . . . . Highest Corruption . | . . . . . . Average Corruption . | . . . . . . Corruption Purged . | . . . . . . Corruption Blocked . | . . . . . . Overload Shots . | . . . . . . Overflow Damage 53 | . . . 22 . 31 Projectiles . | . . . . . . Explosions 53 | . . . 22 . 31 Melee . | . . . . . . Knockbacks . | . . . . . . Impact . | . . . . . . Kinetic . | . . . . . . Secondary . | . . . . . . Self-Inflicted Damage 83 | . . . 68 . 15 Shots 3 | . . . 2 . 1 Rammed . | . . . . . . Targets Rammed . | . . . . . . Kicked . | . . . . . . Crushed . | . . . . . . Highest Temperature 18 | . . 12 18 . . Average Temperature 6 | . . 4 7 . . Received Heat Transfer 291 | . . 195 96 . . Siege Activations . | . . . . . . Robots Corrupted . | . . . . . . Combat Hostiles . | . . . . . . Parts Fried . | . . . . . . Impact Corruptions . | . . . . . . Robots Melted . | . . . . . . Combat Hostiles . | . . . . . . Parts Melted . | . . . . . . Heat Transferred 100 | . . . 100 . . Parts Sabotaged . | . . . . . . Parts Stolen . | . . . . . . Parts Stripped . | . . . . . . Power Chain Reactions . | . . . . . . Alert | -11 -10 -9 -9 -9 -8 ------- Run | Yrd Mat Mat Min Exi Min Peak Influence 454 | 5 32 346 454 . 104 Initial 65 | . 3 13 65 . . Average 159 | 1 14 170 273 . 75 Maximum Alert Level 2 | . . 1 2 . . Low Security (%) 57 | 100 100 69 8 . 100 Level 1 35 | . . 30 74 . . Level 2 6 | . . . 17 . . Level 3 . | . . . . . . Level 4 . | . . . . . . Level 5 . | . . . . . . High Security . | . . . . . . Max Security . | . . . . . . Squads Dispatched 4 | . . 3 1 . . Investigation 1 | . . . 1 . . Extermination . | . . . . . . Reinforcement 3 | . . 3 . . . Assault . | . . . . . . Garrison . | . . . . . . Intercept . | . . . . . . Searches Triggered . | . . . . . . Construction Impeded . | . . . . . . Haulers Reinforced . | . . . . . . Active Scanning Responses . | . . . . . . Cargo Convoy Interrupts . | . . . . . . Stealth | -11 -10 -9 -9 -9 -8 --------- Run | Yrd Mat Mat Min Exi Min Distress Signals . | . . . . . . Communications Jammed . | . . . . . . Distress Signals . | . . . . . . Times Spotted 39 | . 1 14 19 . 5 Peak Tracking Total 4 | . 1 4 4 . 3 Tactical Retreats . | . . . . . . Traps | -11 -10 -9 -9 -9 -8 ------- Run | Yrd Mat Mat Min Exi Min Traps Triggered . | . . . . . . Indirectly . | . . . . . . Trap Hack Attempts . | . . . . . . Triggered . | . . . . . . Disarmed . | . . . . . . Reprogrammed . | . . . . . . Reused . | . . . . . . Traps Extracted . | . . . . . . Installed . | . . . . . . Triggered . | . . . . . . Machines | -11 -10 -9 -9 -9 -8 ---------- Run | Yrd Mat Mat Min Exi Min Machines Disabled 4 | . . . 3 . 1 Max in Single Turn 2 | . . . 2 . 1 Machines Repaired . | . . . . . . Machines Dismantled . | . . . . . . Machines Sabotaged . | . . . . . . Overloaded Fab Kills . | . . . . . . Hacking | -11 -10 -9 -9 -9 -8 --------- Run | Yrd Mat Mat Min Exi Min Machines Accessed 11 | . 3 5 1 2 . Terminals 6 | . 2 4 . . . Fabricators . | . . . . . . Repair Stations 1 | . 1 . . . . Recycling Units . | . . . . . . Scanalyzers 1 | . . 1 . . . Garrison Access . | . . . . . . Total Hacks 22 | . 3 13 1 5 . Successful 11 | . 2 3 1 5 . Failed 11 | . 1 10 . . . Catastrophic 3 | . 1 2 . . . Database Lockouts . | . . . . . . Manual 6 | . . 5 . 1 . Terminals 13 | . 2 11 . . . Fabricators . | . . . . . . Repair Stations 1 | . 1 . . . . Recycling Units . | . . . . . . Scanalyzers 2 | . . 2 . . . Garrison Access . | . . . . . . Terminal Hacks 10 | . 2 2 1 5 . Record 4 | . . . . 4 . Open Door 1 | . . . 1 . . Branch Access Points 1 | . . 1 . . . Terminal Index 1 | . . 1 . . . Registered Components 1 | . 1 . . . . Zone Layout 1 | . 1 . . . . Derelict Proto ID Bank 1 | . . . . 1 . Fabricator Hacks . | . . . . . . Repair Station Hacks . | . . . . . . Recycling Unit Hacks . | . . . . . . Scanalyzer 1 | . . 1 . . . Insert Component 1 | . . 1 . . . Garrison Access Hacks . | . . . . . . Unauthorized Hacks . | . . . . . . Terminals . | . . . . . . Fabricators . | . . . . . . Repair Stations . | . . . . . . Recycling Units . | . . . . . . Scanalyzers . | . . . . . . Garrison Access . | . . . . . . Data Cores Recovered . | . . . . . . Used . | . . . . . . Hacking Detections 5 | . 1 4 . . . Full Trace Events . | . . . . . . Feedback Events . | . . . . . . Feedback Blocked . | . . . . . . Robot Schematics Acquired . | . . . . . . Robots Built . | . . . . . . Authchips . | . . . . . . Time . | . . . . . . Total Robot Build Rating . | . . . . . . Part Schematics Acquired . | . . . . . . Parts Built . | . . . . . . Authchips . | . . . . . . Time . | . . . . . . Total Part Build Rating . | . . . . . . Parts Repaired . | . . . . . . Time . | . . . . . . Parts Recycled . | . . . . . . Recycled Matter . | . . . . . . Retrieved Matter . | . . . . . . Retrieved Components . | . . . . . . Parts Scanalyzed . | . . . . . . Part Schematics Acquired . | . . . . . . Parts Damaged . | . . . . . . Bothacking | -11 -10 -9 -9 -9 -8 ------------ Run | Yrd Mat Mat Min Exi Min Used RIF Installer . | . . . . . . Robots Hacked . | . . . . . . Non-combat . | . . . . . . Combat . | . . . . . . Robot Hacks Applied . | . . . . . . Relay Couplers Released . | . . . . . . Fabnet Peak Effective % . | . . . . . . Robots Rewired . | . . . . . . Allies Hacked . | . . . . . . Hacks Repelled . | . . . . . . Allies | -11 -10 -9 -9 -9 -8 -------- Run | Yrd Mat Mat Min Exi Min Total Allies . | . . . . . . Largest Group . | . . . . . . Highest-Rated Group . | . . . . . . Highest-Rated Ally . | . . . . . . Total Orders . | . . . . . . Ally Attacks . | . . . . . . Total Damage . | . . . . . . Kills . | . . . . . . Allies Corrupted . | . . . . . . Allies Melted . | . . . . . . Intel | -11 -10 -9 -9 -9 -8 ------- Run | Yrd Mat Mat Min Exi Min Robot Analysis Total . | . . . . . . Derelict Logs Recovered 1 | . . . 1 . . Drone Launches . | . . . . . . Drone Recoveries . | . . . . . . Exploration | -11 -10 -9 -9 -9 -8 ------------- Run | Yrd Mat Mat Min Exi Min Turns Passed 3393 | 149 354 449 1027 837 577 Spaces Moved 1900 | 75 210 206 593 522 294 Core 15 | 15 . . . . . Treads 1883 | 58 210 206 593 522 294 Legs 2 | 2 . . . . . Wheels . | . . . . . . Hover . | . . . . . . Flight . | . . . . . . Fastest Speed 50 | 50 160 160 160 160 160 Average Speed 159 | 146 160 160 160 160 160 Slowest Speed 200 | 200 160 160 160 160 160 Overloaded Moves . | . . . . . . Propulsion Burnouts . | . . . . . . Robots Hopped . | . . . . . . Cave-ins Triggered . | . . . . . . Exploration Rate (%) 54 | 4 40 28 97 91 64 Regions Visited 5 Branch Regions 3 Pre-discovered Areas 1 | . . . . 1 . Known Exits Taken 1 | . . 1 . . . Unknown Exits Taken 4 | 1 1 . 1 1 . Scrap Searched 3 | . . . 3 . . Spaces Dug . | . . . . . . Terrain Destroyed 143 | . . 12 93 . 38 Melee . | . . . . . . Projectile . | . . . . . . AOE 143 | . . 12 93 . 38 Terrain Rammed . | . . . . . . Walls Destroyed . | . . . . . . Machines Disabled . | . . . . . . Actions | -11 -10 -9 -9 -9 -8 --------- Run | Yrd Mat Mat Min Exi Min Total 2146 | 102 228 261 639 524 392 Wait 116 | 5 3 . 15 . 93 Move 1895 | 74 209 205 592 521 294 Hop . | . . . . . . Pick Up 27 | 6 10 6 4 1 . Fast Attach 14 | 9 1 2 1 1 . Attach 6 | . . 3 3 . . Detach . | . . . . . . Swap 5 | . 2 3 . . . Drop 15 | 3 3 6 2 1 . Fire 67 | 5 . 36 21 . 5 Melee . | . . . . . . Ram . | . . . . . . Kick . | . . . . . . Crush . | . . . . . . Escape Stasis . | . . . . . . Rewire 1 | . . . 1 . . Trap . | . . . . . . Miscellaneous . | . . . . . . Route ------- -11/Scrapyard -10/Materials -9/Materials -9/Mines (discovered 4 exits: [*Mat x2] / *Exi / [*Zio]) -9/Exiles -8/Mines History --------- Turn | Location | Event 4 | -11/Scrapyard | Discovered new exit (range 15) 150 | -11/Scrapyard | Entered Materials 307 | -10/Materials | Build established: Mutant 462 | -10/Materials | Discovered new exit (range 8) 504 | -10/Materials | Entered another Materials area 504 | -9/Materials | Evolved 2 slots: Propulsion x2 924 | -9/Materials | Identified exit to Mines 953 | -9/Materials | Entered Mines 954 | -9/Mines | Assembled infested the area 1063 | -9/Mines | Learned 4 Materials zone layouts 1176 | -9/Mines | Core integrity fell below 50% 1208 | -9/Mines | Met a Derelict shopkeep closing up shop 1239 | -9/Mines | Discovered new exit (range 5) 1246 | -9/Mines | Received a Rocket Launcher from a helpful Derelict 1624 | -9/Mines | Discovered new exit (range 8) 1641 | -9/Mines | A Derelict revealed a hidden shortcut to a safe place 1972 | -9/Mines | Deemed a non-threat by the Exiles lab entrance 1974 | -9/Mines | Discovered new exit (range 5) 1980 | -9/Mines | Entered Exiles 2024 | -9/Exiles | Met 8R-AWN 2044 | -9/Exiles | Met EX-HEX 2129 | -9/Exiles | Met EX-DEC 2161 | -9/Exiles | Visited The Gauntlet 2382 | -9/Exiles | Met EX-BIN 2401 | -9/Exiles | Aligned with FarCom system 2403 | -9/Exiles | Given EX-Vault access code 2475 | -9/Exiles | Opened EX-Vault 2485 | -9/Exiles | Found Longsword +1 2521 | -9/Exiles | Warned to stay clear of 0b10 Research branches 2572 | -9/Exiles | Learned location of Zion (-7) 2619 | -9/Exiles | Discovered new exit (range 15) 2817 | -9/Exiles | Left Exiles lab with Longsword +1 2817 | -9/Exiles | Entered Mines 3394 | -8/Mines | Self-destructed Last Messages --------------- GOAL=ESCAPE 02817_ Receiving FarCom transmissions... 02874_ Imp. Treads destroyed. 02875_ Pressure Siphon disabled. 02878_ S-10 Pest destroyed. 02892_ Acquired 12 matter. 02894_ Acquired 7 matter. 02895_ Acquired 9 matter. 02898_ U-05 Engineer lays Concrete. 02902_ K-01 Serf collects debris. 02906_ U-05 Engineer builds a Wall. 02911_ U-05 Engineer lays Concrete. 02913_ U-05 Engineer builds a Wall. 02968_ K-01 Serf collects debris. 03043_ T-07 Excavator is excavating. 03296_ K-01 Serf destroyed. 03296_ Destroyed Flight Unit. 03296_ S-10 Pest destroyed. 03306_ Acquired 25 matter. 03311_ Acquired 7 matter. Map ----- +----------------------------------------------------+ | ##?####??# #???# ##?# #???? | | ### #??# ##### ### #???? | | #??# ## #???? | | """ #???###### #? ##??? | | """ ########### ##?? ##?? | | """ #?# #???# #?? | | #?# #??## #?? | | #?# ###### #### #?? | | ##?# #????## l ## #?? | | #### #?????## #?? | | #??????### ##?? | | ##### ##???????## g ##??? | | ##?## ##???????## ######???? | | ##?## #????????### #????????? | | ##### #??????????# #????????? | | ### " " ##??????????# #????????? | | " #???????????# #????????? | | [ #???????????# #????????? | | [ #????######## #????????? | | ### #??# #????????? | | # ## ## #????######## #????????? | | ####### #??????????# *#????????? | | # #????## #?????????##= #????????? | | ###????? ##?????????# =####?????? | | ???????? ##??????????# ##?????? | | ??????? #???????????# @ #?????? | | ??????? #???????????# = ####??? | | ??????? #???????????# ## ##?? | | ?????? ???????????###=% #?? | | ?????? ##?????????????##[ #?? | | ?????? ##????????????#### ##?? | | ????? #?????????????## ##??? | | ????????????????????# ##???? | | ????????????????????# #????? | | ????????????????????## # #????? | | ?????????????????????# ##### #????? | | ?????????????????????# #???# #????? | | ?????????????????????# #???# #????? | | ????????????????????## ##??# #????? | | ???????????????????## #### #####? | | ???????????????????# ## #? | | ???????????????????# #? | | ???????????????????# #### #? | | ??????????????????# ## ### #? | | ?????????????????# #### #? | | ?????????????????# #??## #? | | ????????????????# #???## #####? | | ????????????????# #????####????? | | ????????????????## ##????????????? | | ?????????????????#####?????????????? | +----------------------------------------------------+ Best States ------------- Heat Dissipation 28 Energy Generation 12 Energy Capacity 265 Matter Stores 400 Matter Capacity 400 Sight Range 16 Terrain Scan Density 10 Evasion (%) 40 Targeting Accuracy 6 Recoil Reduction 4 Trap Extractor Capacity 4 Item Schematics ----------------- None Robot Schematics ------------------ None Fabricated ------------ Nothing Alien Tech Used ----------------- None Achievements -------------- None Challenges ------------ None Game ------ Seed GuidedImprinterWell Manual? 0 Play Time 00:34:37 Cumulative 59.0 hours Start 2024.07.09 @ 20:50:24 End 2024.07.11 @ 15:00:12 Sessions 11 Manual Loads 0 Difficulty Rogue Special Mode None Game No. 66 Rogue 66 Adventurer 0 Explorer 0 Win Type - Total 1 Types 1/0/0/0/0/0/0/0/0 Lore% 40 Gallery% 44 Achievement% 35 Wizard Run 0 Options --------- Layout 1 ASCII 0 Keyboard 0 Movement Arrows Keybinds 0 Fullscreen 2 Font 24/Smallcaps Map View 50x35 Zoom Use 0% Tactical HUD 1 Map Filters NONE Filters NONE Steam 1 RUN: 0c69e62a-613c-4ec3-aeda-93bb6c81830f